fUST/lending_fUST_20250324
["ID","MTS","AMOUNT","RATE_DAILY","PERIOD"]
[356593172,1742754646930,-500.0,0.00013698,2]
[356593173,1742754646939,-1663.71,0.00013698,2]
[356593174,1742754646949,-500.0,0.00013698,2]
[356593175,1742754646959,-500.0,0.00013698,2]
[356593176,1742754646970,-5394.86,0.00013698,2]
[356593177,1742754646979,-500.0,0.00013698,2]
[356593178,1742754646990,-500.0,0.00013698,2]
[356593179,1742754646999,-936.5,0.00013698,2]
[356593180,1742754647009,-500.0,0.00013698,2]
[356593181,1742754647019,-500.0,0.00013698,2]
[356593182,1742754647029,-516.55,0.00013698,2]
[356593183,1742754647038,-500.0,0.00013698,2]
[356593184,1742754647048,-2147.338478,0.00013699,2]
[356593185,1742754647058,-6623.62444484,0.00013699,2]
[356593186,1742754647068,-500.0,0.00013699,2]
[356593187,1742754647079,-500.0,0.00013699,2]
[356593188,1742754647089,-6623.62444484,0.00013699,2]
[356593189,1742754647099,-549.49218176,0.00013699,2]
[356593190,1742754647108,-6623.62444484,0.00013699,2]
[356593191,1742754647118,-6623.62444484,0.00013699,2]
[356593192,1742754647127,-6623.62444484,0.00013699,2]
[356593193,1742754647137,-6623.62444484,0.00013699,2]
[356593194,1742754647147,-6623.62444484,0.00013699,2]
[356593195,1742754647156,-6623.62444484,0.00013699,2]
[356593196,1742754647166,-6623.62444484,0.00013699,2]
[356593197,1742754647175,-6623.62444484,0.00013699,2]
[356593198,1742754647186,-6623.62444484,0.00013699,2]
[356593199,1742754647196,-6623.62444484,0.00013699,2]
[356593200,1742754647205,-6623.62444484,0.00013699,2]
[356593201,1742754647215,-6623.62444484,0.00013699,2]
[356593202,1742754647225,-6623.62444484,0.00013699,2]
[356593203,1742754647234,-6623.62444484,0.00013699,2]
[356593204,1742754647244,-6623.62444484,0.00013699,2]
[356593205,1742754647254,-6623.62444484,0.00013699,2]
[356593206,1742754647264,-6623.62444484,0.00013699,2]
[356593207,1742754647274,-6623.62444484,0.00013699,2]
[356593208,1742754647283,-6623.62444484,0.00013699,2]
[356593209,1742754647293,-6623.62444484,0.00013699,2]
[356593210,1742754647303,-6623.62444484,0.00013699,2]
[356593211,1742754647318,-6623.62444484,0.00013699,2]
[356593212,1742754647328,-6623.62444484,0.00013699,2]
[356593213,1742754647337,-6623.62444484,0.00013699,2]
[356593214,1742754647347,-6623.62444484,0.00013699,2]
[356593215,1742754647358,-6623.62444484,0.00013699,2]
[356593216,1742754647368,-6623.62444484,0.00013699,2]
[356593217,1742754647377,-6623.62444484,0.00013699,2]
[356593218,1742754647389,-6623.62444484,0.00013699,2]
[356593219,1742754647399,-6623.62444484,0.00013699,2]
[356593220,1742754647409,-6623.62444484,0.00013699,2]
[356593221,1742754647418,-6623.62444484,0.00013699,2]
[356593222,1742754647428,-6623.62444484,0.00013699,2]
[356593223,1742754647438,-6623.62444484,0.00013699,2]
[356593224,1742754647448,-6623.62444484,0.00013699,2]
[356593225,1742754647460,-6623.62444484,0.00013699,2]
[356593226,1742754647470,-6623.62444484,0.00013699,2]
[356593227,1742754647480,-6623.62444484,0.00013699,2]
[356593228,1742754647490,-6623.62444484,0.00013699,2]
[356593229,1742754647500,-6623.62444484,0.00013699,2]
[356593230,1742754647510,-6623.62444484,0.00013699,2]
[356593231,1742754647520,-6623.62444484,0.00013699,2]
[356593232,1742754647529,-6623.62444484,0.00013699,2]
[356593233,1742754647539,-4194.72698786,0.00013699,2]
[356593234,1742754647755,-341.6497888,0.00013699,2]
[356593235,1742754647767,-2087.24766818,0.00013699,2]
[356593236,1742754647777,-6623.62444484,0.00013699,2]
[356593237,1742754647786,-6623.62444484,0.00013699,2]
[356593238,1742754647795,-6623.62444484,0.00013699,2]
[356593239,1742754647805,-6623.62444484,0.00013699,2]
[356593240,1742754647814,-5658.25455246,0.00013699,2]
[356593241,1742754647847,-965.36989238,0.00013699,2]
[356593242,1742754647856,-5734.72673637,0.00013699,2]
[356593243,1742754647868,-888.89770847,0.00013699,2]
[356593244,1742754648116,-6623.62444484,0.00013699,2]
[356593245,1742754648131,-6623.62444484,0.00013699,2]
[356593246,1742754648142,-6623.62444484,0.00013699,2]
[356593247,1742754648152,-6623.62444484,0.00013699,2]
[356593248,1742754648161,-6623.62444484,0.00013699,2]
[356593249,1742754648171,-6623.62444484,0.00013699,2]
[356593250,1742754648180,-11327.00380638,0.00013699,2]
[356593251,1742754648190,-11327.00380638,0.00013699,2]
[356593252,1742754648200,-11327.00380638,0.00013699,2]
[356593253,1742754648210,-11327.00380638,0.00013699,2]
[356593254,1742754648219,-11327.00380638,0.00013699,2]
[356593255,1742754648228,-11327.00380638,0.00013699,2]
[356593256,1742754648238,-11327.00380638,0.00013699,2]
[356593257,1742754648247,-11327.00380638,0.00013699,2]
[356593258,1742754648257,-11327.00380638,0.00013699,2]
[356593259,1742754648266,-11327.00380638,0.00013699,2]
[356593260,1742754648275,-11327.00380638,0.00013699,2]
[356593261,1742754648285,-11327.00380638,0.00013699,2]
[356593262,1742754648294,-11327.00380638,0.00013699,2]
[356593263,1742754648304,-11327.00380638,0.00013699,2]
[356593264,1742754648317,-11327.00380638,0.00013699,2]
[356593265,1742754648326,-11327.00380638,0.00013699,2]
[356593266,1742754648335,-11327.00380638,0.00013699,2]
[356593267,1742754648344,-11327.00380638,0.00013699,2]
[356593268,1742754648354,-11327.00380638,0.00013699,2]
[356593269,1742754648364,-11327.00380638,0.00013699,2]
[356593270,1742754648373,-11327.00380638,0.00013699,2]
[356593271,1742754648384,-11327.00380638,0.00013699,2]
[356593272,1742754648394,-11327.00380638,0.00013699,2]
[356593273,1742754648403,-11327.00380638,0.00013699,2]
[356593274,1742754648413,-11327.00380638,0.00013699,2]
[356593275,1742754648422,-11327.00380638,0.00013699,2]
[356593276,1742754648432,-11327.00380638,0.00013699,2]
[356593277,1742754648441,-11327.00380638,0.00013699,2]
[356593278,1742754648451,-11327.00380638,0.00013699,2]
[356593279,1742754648461,-11327.00380638,0.00013699,2]
[356593280,1742754648470,-11327.00380638,0.00013699,2]
[356593281,1742754648480,-11327.00380632,0.00013699,2]
[356593282,1742754648489,-11327.00380632,0.00013699,2]
[356593283,1742754648499,-1586.183801,0.00013699,2]
[356593284,1742754648508,-1586.183801,0.00013699,2]
[356593285,1742754648517,-1586.183801,0.00013699,2]
[356593286,1742754648527,-1586.183801,0.00013699,2]
[356593287,1742754648536,-1586.183801,0.00013699,2]
[356593288,1742754648545,-1586.183801,0.00013699,2]
[356593289,1742754648554,-1586.183801,0.00013699,2]
[356593290,1742754648564,-1586.183801,0.00013699,2]
[356593291,1742754648573,-1586.183801,0.00013699,2]
[356593292,1742754648583,-1586.183796,0.00013699,2]
[356593293,1742754648592,-2543.705079,0.00013699,2]
[356593294,1742754648602,-2543.705079,0.00013699,2]
[356593295,1742754648611,-2543.705079,0.00013699,2]
[356593296,1742754648620,-2543.705079,0.00013699,2]
[356593297,1742754648630,-2543.705079,0.00013699,2]
[356593298,1742754648639,-2543.705079,0.00013699,2]
[356593299,1742754648648,-2543.705079,0.00013699,2]
[356593300,1742754648658,-2543.705079,0.00013699,2]
[356593301,1742754648667,-2543.705079,0.00013699,2]
[356593302,1742754648677,-2543.70508744,0.00013699,2]
[356593303,1742754648687,-151.0,0.00013699,2]
[356593304,1742754648697,-151.0,0.00013699,2]
[356593305,1742754648707,-151.0,0.00013699,2]
[356593306,1742754648717,-151.0,0.00013699,2]
[356593307,1742754648727,-151.0,0.00013699,2]
[356593308,1742754648737,-151.0,0.00013699,2]
[356593309,1742754648747,-151.0,0.00013699,2]
[356593310,1742754648757,-151.0,0.00013699,2]
[356593311,1742754648766,-151.0,0.00013699,2]
[356593312,1742754648776,-151.0,0.00013699,2]
[356593313,1742754648786,-151.0,0.00013699,2]
[356593314,1742754648795,-292.82704,0.00013699,2]
[356593315,1742754648805,-187.2706438,0.000137,2]
[356593316,1742754648815,-187.2706438,0.000137,2]
[356593317,1742754648824,-187.2706438,0.000137,2]
[356593318,1742754648834,-1238.05,0.000137,2]
[356593319,1742754648843,-1238.05,0.000137,2]
[356593320,1742754648853,-1238.05,0.000137,2]
[356593321,1742754648863,-1238.05,0.000137,2]
[356593322,1742754648872,-1238.05,0.000137,2]
[356593323,1742754648882,-1238.05,0.000137,2]
[356593324,1742754648891,-1238.05,0.000137,2]
[356593325,1742754648900,-1238.05,0.000137,2]
[356593326,1742754648909,-1238.05,0.000137,2]
[356593327,1742754648919,-1238.05,0.000137,2]
[356593328,1742754648928,-459.7166245,0.00013742,2]
[356593329,1742754648937,-622.2,0.00013746,2]
[356593330,1742754648947,-187.2706438,0.000138,2]
[356593331,1742754648956,-186.7522511,0.000138,2]
[356593332,1742754648966,-187.2706438,0.000138,2]
[356593333,1742754648976,-645.2214,0.00013801,2]
[356593334,1742754648985,-500.0,0.00013807,2]
[356593335,1742754648995,-669.0945918,0.00013856,2]
[356593336,1742754649006,-930.11664604,0.00013911,2]
[356593337,1742754649015,-500.0,0.00013972,2]
[356593338,1742754649025,-500.0,0.00013972,2]
[356593339,1742754649034,-500.0,0.00013972,2]
[356593340,1742754649043,-592.11,0.00013972,2]
[356593341,1742754649053,-500.0,0.00013972,2]
[356593342,1742754649062,-500.0,0.00013972,2]
[356593343,1742754649072,-500.0,0.00013972,2]
[356593344,1742754649082,-500.0,0.00013972,2]
[356593345,1742754649091,-500.0,0.00013972,2]
[356593346,1742754649101,-500.0,0.00013972,2]
[356593347,1742754649111,-500.0,0.00013972,2]
[356593348,1742754649121,-500.0,0.00013972,2]
[356593349,1742754649131,-500.0,0.00013972,2]
[356593350,1742754649140,-519.82,0.00013972,2]
[356593351,1742754649149,-500.0,0.00013972,2]
[356593352,1742754649159,-594.74,0.00013972,2]
[356593353,1742754649169,-500.0,0.00013972,2]
[356593354,1742754649178,-500.0,0.00013972,2]
[356593355,1742754649188,-500.0,0.00013972,2]
[356593356,1742754649198,-1209.59,0.00013972,2]
[356593357,1742754649207,-500.0,0.00013972,2]
[356593358,1742754649216,-549.48,0.00013972,2]
[356593359,1742754649226,-500.0,0.00013972,2]
[356593360,1742754649235,-1320.82,0.00013972,2]
[356593361,1742754649246,-1305.85,0.00013972,2]
[356593362,1742754649255,-500.0,0.00013972,2]
[356593363,1742754649264,-500.0,0.00013972,2]
[356593364,1742754649275,-631.4,0.00013972,2]
[356593365,1742754649284,-500.0,0.00013972,2]
[356593366,1742754649293,-1696.77,0.00013972,2]
[356593367,1742754649302,-411.42248203,0.00013972,2]
[356593368,1742754649315,-500.0,0.00013972,2]
[356593369,1742754649324,-741.19,0.00013972,2]
[356593370,1742754649334,-500.0,0.00013972,2]
[356593371,1742754649343,-500.0,0.00013972,2]
[356593372,1742754649353,-672.61,0.00013972,2]
[356593373,1742754649363,-500.0,0.00013972,2]
[356593374,1742754649372,-798.67,0.00013972,2]
[356593375,1742754649382,-500.0,0.00013972,2]
[356593376,1742754649392,-500.0,0.00013972,2]
[356593377,1742754649402,-500.0,0.00013972,2]
[356593378,1742754649413,-861.85,0.00013972,2]
[356593379,1742754649422,-500.0,0.00013972,2]
[356593380,1742754649431,-550.82,0.00013972,2]
[356593381,1742754649441,-500.0,0.00013972,2]
[356593382,1742754649451,-1535.93,0.00013972,2]
[356593383,1742754649460,-500.0,0.00013972,2]
[356593384,1742754649469,-997.77,0.00013972,2]
[356593385,1742754649478,-893.8,0.00013972,2]
[356593386,1742754649488,-500.0,0.00013972,2]
[356593387,1742754649497,-500.0,0.00013972,2]
[356593388,1742754649507,-600.07,0.00013972,2]
[356593389,1742754649517,-500.0,0.00013972,2]
[356593390,1742754649526,-500.0,0.00013972,2]
[356593391,1742754649536,-723.51,0.00013972,2]
[356593392,1742754649545,-249.49213618,0.00013972,2]
[356593393,1742754649554,-500.0,0.00013972,2]
[356593394,1742754649563,-500.0,0.00013972,2]
[356593395,1742754649573,-500.0,0.00013972,2]
[356593396,1742754649583,-500.0,0.00013972,2]
[356593397,1742754649592,-995.96,0.00013972,2]
[356593398,1742754649602,-500.0,0.00013972,2]
[356593399,1742754649611,-500.0,0.00013972,2]
[356593400,1742754649621,-651.85,0.00013972,2]
[356593401,1742754649630,-1120.9,0.00013972,2]
[356593402,1742754649640,-500.0,0.00013972,2]
[356593403,1742754649649,-500.0,0.00013972,2]
[356593404,1742754649659,-810.07,0.00013972,2]
[356593405,1742754649668,-507.55,0.00013972,2]
[356593406,1742754649678,-1681.95,0.00013972,2]
[356593407,1742754649687,-500.0,0.00013972,2]
[356593408,1742754649697,-500.0,0.00013972,2]
[356593409,1742754649706,-500.0,0.00013972,2]
[356593410,1742754649716,-899.63,0.00013972,2]
[356593411,1742754649725,-500.0,0.00013972,2]
[356593412,1742754649734,-1959.83,0.00013972,2]
[356593413,1742754649743,-602.0,0.00013972,2]
[356593414,1742754649753,-640.38,0.00013972,2]
[356593415,1742754649763,-500.0,0.00013972,2]
[356593416,1742754649772,-4387.68,0.00013972,2]
[356593417,1742754649781,-500.0,0.00013972,2]
[356593418,1742754649790,-541.52,0.00013972,2]
[356593419,1742754649799,-602.86,0.00013972,2]
[356593420,1742754649809,-500.0,0.00013972,2]
[356593421,1742754649818,-418.53599401,0.00013972,2]
[356593422,1742754649827,-500.0,0.00013972,2]
[356593423,1742754649837,-656.58,0.00013972,2]
[356593424,1742754649846,-728.09,0.00013972,2]
[356593425,1742754649855,-2315.43,0.00013972,2]
[356593426,1742754649864,-500.0,0.00013972,2]
[356593427,1742754649874,-500.0,0.00013972,2]
[356593428,1742754649883,-500.0,0.00013972,2]
[356593429,1742754649892,-500.0,0.00013972,2]
[356593430,1742754649902,-500.0,0.00013972,2]
[356593431,1742754649912,-500.0,0.00013972,2]
[356593432,1742754649921,-500.0,0.00013972,2]
[356593433,1742754649931,-500.0,0.00013972,2]
[356593434,1742754649940,-500.0,0.00013972,2]
[356593435,1742754649950,-500.0,0.00013972,2]
[356593436,1742754649959,-700.98,0.00013972,2]
[356593437,1742754649969,-641.42,0.00013972,2]
[356593438,1742754649978,-661.03,0.00013972,2]
[356593439,1742754649987,-500.0,0.00013972,2]
[356593440,1742754649997,-500.0,0.00013972,2]
[356593441,1742754650006,-500.0,0.00013972,2]
[356593442,1742754650016,-500.0,0.00013972,2]
[356593443,1742754650026,-500.0,0.00013972,2]
[356593444,1742754650035,-500.0,0.00013972,2]
[356593445,1742754650045,-663.07,0.00013972,2]
[356593446,1742754650054,-762.04,0.00013972,2]
[356593447,1742754650064,-500.0,0.00013972,2]
[356593448,1742754650073,-500.0,0.00013972,2]
[356593449,1742754650082,-500.0,0.00013972,2]
[356593450,1742754650091,-1931.03,0.00013972,2]
[356593451,1742754650101,-979.05,0.00013972,2]
[356593452,1742754650110,-2477.48,0.00013972,2]
[356593453,1742754650120,-20260.13,0.00013972,2]
[356593454,1742754650129,-669.47,0.00013972,2]
[356593455,1742754650139,-6636.2,0.00013972,2]
[356593456,1742754650148,-891.55,0.00013972,2]
[356593457,1742754650158,-1753.31,0.00013972,2]
[356593458,1742754650167,-2383.82,0.00013972,2]
[356593459,1742754650176,-500.0,0.00013972,2]
[356593460,1742754650186,-663.29,0.00013972,2]
[356593461,1742754650196,-3205.36,0.00013972,2]
[356593462,1742754650206,-4624.5,0.00013972,2]
[356593463,1742754650216,-500.0,0.00013972,2]
[356593464,1742754650225,-4491.06,0.00013972,2]
[356593465,1742754650234,-13876.8,0.00013972,2]
[356593466,1742754650244,-500.0,0.00013972,2]
[356593467,1742754650253,-611.79,0.00013972,2]
[356593468,1742754650262,-8577.04,0.00013972,2]
[356593469,1742754650272,-672.73,0.00013972,2]
[356593470,1742754650281,-1703.4,0.00013972,2]
[356593471,1742754650290,-500.0,0.00013972,2]
[356593472,1742754650300,-546.67,0.00013972,2]
[356593473,1742754650311,-500.0,0.00013972,2]
[356593474,1742754650321,-500.0,0.00013972,2]
[356593475,1742754650330,-500.0,0.00013972,2]
[356593476,1742754650340,-2002.75,0.00013972,2]
[356593477,1742754650351,-594.91,0.00013972,2]
[356593478,1742754650360,-500.0,0.00013972,2]
[356593479,1742754650369,-890.89,0.00013972,2]
[356593480,1742754650378,-500.0,0.00013972,2]
[356593481,1742754650389,-644.93,0.00013972,2]
[356593482,1742754650399,-561.86,0.00013972,2]
[356593483,1742754650409,-1048.23,0.00013972,2]
[356593484,1742754650418,-500.0,0.00013972,2]
[356593485,1742754650427,-1877.98,0.00013972,2]
[356593486,1742754650437,-500.0,0.00013972,2]
[356593487,1742754650447,-840.3,0.00013972,2]
[356593488,1742754650457,-762.06,0.00013972,2]
[356593489,1742754650467,-510.24,0.00013972,2]
[356593490,1742754650477,-18159.45,0.00013972,2]
[356593491,1742754650487,-1519.76,0.00013972,2]
[356593492,1742754650496,-500.0,0.00013972,2]
[356593493,1742754650506,-500.0,0.00013972,2]
[356593494,1742754650515,-500.0,0.00013972,2]
[356593495,1742754650562,-500.0,0.00013972,2]
[356593496,1742754650572,-540.54,0.00013972,2]
[356593497,1742754650581,-180295.51,0.00013972,2]
[356593498,1742754650591,-500.0,0.00013972,2]
[356593499,1742754650601,-500.0,0.00013972,2]
[356593500,1742754650611,-500.0,0.00013972,2]
[356593501,1742754650620,-6874.96,0.00013972,2]
[356593502,1742754650630,-500.0,0.00013972,2]
[356593503,1742754650639,-500.0,0.00013972,2]
[356593504,1742754650649,-500.0,0.00013972,2]
[356593505,1742754650658,-599.71,0.00013972,2]
[356593506,1742754650668,-7706.28,0.00013972,2]
[356593507,1742754650678,-1863.31,0.00013972,2]
[356593508,1742754650688,-500.0,0.00013972,2]
[356593509,1742754650698,-532.23,0.00013972,2]
[356593510,1742754650709,-1314.52,0.00013972,2]
[356593511,1742754650719,-500.0,0.00013972,2]
[356593512,1742754650729,-3735.17,0.00013972,2]
[356593513,1742754650739,-2740.37,0.00013972,2]
[356593514,1742754650749,-500.0,0.00013972,2]
[356593515,1742754650759,-3420.05,0.00013972,2]
[356593516,1742754650769,-500.0,0.00013972,2]
[356593517,1742754650779,-500.0,0.00013972,2]
[356593518,1742754650789,-500.0,0.00013972,2]
[356593519,1742754650798,-2225.43,0.00013972,2]
[356593520,1742754650808,-500.0,0.00013972,2]
[356593521,1742754650817,-714.16,0.00013972,2]
[356593522,1742754650826,-674.81,0.00013972,2]
[356593523,1742754650836,-4777.03,0.00013972,2]
[356593524,1742754650846,-1396.09,0.00013972,2]
[356593525,1742754650855,-500.0,0.00013972,2]
[356593526,1742754650865,-551.82,0.00013972,2]
[356593527,1742754650875,-500.0,0.00013972,2]
[356593528,1742754650884,-944.19,0.00013972,2]
[356593529,1742754650894,-500.0,0.00013972,2]
[356593530,1742754650904,-1594.29,0.00013972,2]
[356593531,1742754650913,-805.38,0.00013972,2]
[356593532,1742754650923,-1123.24,0.00013972,2]
[356593533,1742754650933,-500.0,0.00013972,2]
[356593534,1742754650943,-500.0,0.00013972,2]
[356593535,1742754650952,-500.0,0.00013972,2]
[356593536,1742754650961,-960.12,0.00013972,2]
[356593537,1742754650971,-500.0,0.00013972,2]
[356593538,1742754650980,-569.38,0.00013972,2]
[356593539,1742754650990,-500.0,0.00013972,2]
[356593540,1742754650999,-500.0,0.00013972,2]
[356593541,1742754651008,-773.76,0.00013972,2]
[356593542,1742754651018,-500.0,0.00013972,2]
[356593543,1742754651028,-500.0,0.00013972,2]
[356593544,1742754651038,-1663.71,0.00013972,2]
[356593545,1742754651047,-500.0,0.00013972,2]
[356593546,1742754651057,-500.0,0.00013972,2]
[356593547,1742754651067,-5394.86,0.00013972,2]
[356593548,1742754651076,-500.0,0.00013972,2]
[356593549,1742754651086,-500.0,0.00013972,2]
[356593550,1742754651096,-936.5,0.00013972,2]
[356593551,1742754651105,-500.0,0.00013972,2]
[356593552,1742754651114,-500.0,0.00013972,2]
[356593553,1742754651124,-516.55,0.00013972,2]
[356593554,1742754651134,-500.0,0.00013972,2]
[356593555,1742754651144,-500.0,0.00013973,2]
[356593556,1742754651155,-500.0,0.00013973,2]
[356593557,1742754651165,-501.06616372,0.00013973,2]
[356593558,1742754651175,-500.0,0.00013973,2]
[356593559,1742754651184,-500.0,0.00013973,2]
[356593560,1742754651194,-500.0,0.00013973,2]
[356593561,1742754651204,-500.0,0.00013973,2]
[356593562,1742754651214,-160.23694085,0.00013973,2]
[356593563,1742754651223,-500.0,0.00013973,2]
[356593564,1742754651233,-500.0,0.00013973,2]
[356593565,1742754651243,-500.36976127,0.00013973,2]
[356593566,1742754651253,-542.25186656,0.00013973,2]
[356593567,1742754651264,-500.0,0.00013973,2]
[356593568,1742754651274,-335.07337593,0.00013973,2]
[356593569,1742754651283,-500.0,0.00013973,2]
[356593570,1742754651293,-505.6890105,0.00013973,2]
[356593571,1742754651302,-500.0,0.00013973,2]
[356593572,1742754651315,-500.0,0.00013973,2]
[356593573,1742754651325,-500.0,0.00013973,2]
[356593574,1742754651334,-500.0,0.00013973,2]
[356593575,1742754651344,-500.0,0.00013973,2]
[356593576,1742754651355,-500.0,0.00013973,2]
[356593577,1742754651364,-500.0,0.00013973,2]
[356593578,1742754651374,-500.0,0.00013973,2]
[356593579,1742754651384,-500.0,0.00013973,2]
[356593580,1742754651394,-500.0,0.00013973,2]
[356593581,1742754651404,-500.0,0.00013973,2]
[356593582,1742754651413,-500.3784206,0.00013973,2]
[356593583,1742754651423,-500.0,0.00013973,2]
[356593584,1742754651432,-540.89807468,0.00013973,2]
[356593585,1742754651441,-500.0,0.00013973,2]
[356593586,1742754651450,-500.0,0.00013973,2]
[356593587,1742754651459,-500.0,0.00013973,2]
[356593588,1742754651469,-500.0,0.00013973,2]
[356593589,1742754651478,-500.0,0.00013973,2]
[356593590,1742754651487,-500.0,0.00013973,2]
[356593591,1742754651497,-1649.99999519,0.0001398,2]
[356593592,1742754651506,-408.16751335,0.0001399,2]
[356593593,1742754651515,-900.0,0.00014,3]
[356593594,1742754651525,-13848.0,0.00014,2]
[356593595,1742754651534,-728.80450912,0.00014,2]
[356593596,1742754651543,-168.11780877,0.00014081,2]
[356593597,1742754651553,-764.2765716,0.00014164,2]
[356593598,1742754651562,-156.587,0.00014239,2]
[356593599,1742754651572,-500.0,0.00014246,2]
[356593600,1742754651581,-592.11,0.00014246,2]
[356593601,1742754651591,-500.0,0.00014246,2]
[356593602,1742754651600,-500.0,0.00014246,2]
[356593603,1742754651610,-500.0,0.00014246,2]
[356593604,1742754651619,-500.0,0.00014246,2]
[356593605,1742754651629,-500.0,0.00014246,2]
[356593606,1742754651638,-500.0,0.00014246,2]
[356593607,1742754651647,-500.0,0.00014246,2]
[356593608,1742754651656,-500.0,0.00014246,2]
[356593609,1742754651665,-500.0,0.00014246,2]
[356593610,1742754651675,-519.82,0.00014246,2]
[356593611,1742754651684,-500.0,0.00014246,2]
[356593612,1742754651694,-594.74,0.00014246,2]
[356593613,1742754651703,-500.0,0.00014246,2]
[356593614,1742754651712,-500.0,0.00014246,2]
[356593615,1742754651722,-500.0,0.00014246,2]
[356593616,1742754651731,-1209.59,0.00014246,2]
[356593617,1742754651741,-500.0,0.00014246,2]
[356593618,1742754651751,-549.48,0.00014246,2]
[356593619,1742754651763,-448.80186293,0.00014246,2]
[356593620,1742754651773,-1320.82,0.00014246,2]
[356593621,1742754651782,-1305.85,0.00014246,2]
[356593622,1742754651792,-500.0,0.00014246,2]
[356593623,1742754651802,-209.10844702,0.00014246,2]
[356593624,1742754651811,-631.4,0.00014246,2]
[356593625,1742754651821,-500.0,0.00014246,2]
[356593626,1742754651830,-1696.77,0.00014246,2]
[356593627,1742754651839,-500.0,0.00014246,2]
[356593628,1742754651848,-741.19,0.00014246,2]
[356593629,1742754651857,-500.0,0.00014246,2]
[356593630,1742754651866,-500.0,0.00014246,2]
[356593631,1742754651876,-672.61,0.00014246,2]
[356593632,1742754651885,-500.0,0.00014246,2]
[356593633,1742754651894,-798.67,0.00014246,2]
[356593634,1742754651903,-500.0,0.00014246,2]
[356593635,1742754651912,-500.0,0.00014246,2]
[356593636,1742754651921,-500.0,0.00014246,2]
[356593637,1742754651931,-861.85,0.00014246,2]
[356593638,1742754651941,-500.0,0.00014246,2]
[356593639,1742754651950,-500.0,0.00014246,2]
[356593640,1742754651961,-550.82,0.00014246,2]
[356593641,1742754651970,-1535.93,0.00014246,2]
[356593642,1742754651979,-500.0,0.00014246,2]
[356593643,1742754651988,-997.77,0.00014246,2]
[356593644,1742754651998,-893.8,0.00014246,2]
[356593645,1742754652007,-500.0,0.00014246,2]
[356593646,1742754652016,-500.0,0.00014246,2]
[356593647,1742754652026,-600.07,0.00014246,2]
[356593648,1742754652036,-500.0,0.00014246,2]
[356593649,1742754652045,-500.0,0.00014246,2]
[356593650,1742754652055,-723.51,0.00014246,2]
[356593651,1742754652064,-500.0,0.00014246,2]
[356593652,1742754652074,-500.0,0.00014246,2]
[356593653,1742754652083,-500.0,0.00014246,2]
[356593654,1742754652092,-500.0,0.00014246,2]
[356593655,1742754652102,-995.96,0.00014246,2]
[356593656,1742754652111,-500.0,0.00014246,2]
[356593657,1742754652121,-500.0,0.00014246,2]
[356593658,1742754652130,-651.85,0.00014246,2]
[356593659,1742754652140,-1120.9,0.00014246,2]
[356593660,1742754652149,-500.0,0.00014246,2]
[356593661,1742754652158,-500.0,0.00014246,2]
[356593662,1742754652168,-810.07,0.00014246,2]
[356593663,1742754652177,-507.55,0.00014246,2]
[356593664,1742754652188,-1681.95,0.00014246,2]
[356593665,1742754652199,-500.0,0.00014246,2]
[356593666,1742754652208,-500.0,0.00014246,2]
[356593667,1742754652218,-500.0,0.00014246,2]
[356593668,1742754652227,-899.63,0.00014246,2]
[356593669,1742754652237,-500.0,0.00014246,2]
[356593670,1742754652246,-1959.83,0.00014246,2]
[356593671,1742754652256,-602.0,0.00014246,2]